bitfinex-derivatives/quotes_ETHF0:USTF0_20220106
["timestamp","ask_amount","ask_price","bid_price","bid_amount"]
[1641489197330,0.1479,3407.4,3407.2,2.41259135]
[1641489197531,0.1479,3407.4,3406.7,5.3221031]
[1641489197731,0.1479,3407.4,3406.7,2.00479]
[1641489206335,2.929,3407.1,3406.2,23.2407]
[1641489206635,2.929,3407.1,3405.7,24.1577]
[1641489206636,3.8082,3407.1,3405.7,24.1577]
[1641489207040,2.00479,3406.6,3405.8,2.00479]
[1641489207237,4.5769,3406.5,3404.5,23.7555]
[1641489207440,4.5769,3406.5,3404.6,12.64]
[1641489207639,2.929,3405.9,3404.6,12.64]
[1641489207941,3.6181,3405.9,3404.6,12.64]
[1641489208137,3.6181,3405.9,3404.5,23.7555]
[1641489208338,3.6181,3405.9,3404.4,23.1115]
[1641489208539,3.6181,3405.9,3404.4,35.7515]
[1641489208938,2.00479,3405.5,3404.7,2.00479]
[1641489209138,0.1479,3405.4,3404.7,2.00479]
[1641489209338,0.1479,3405.4,3404.7,15.041972]
[1641489209537,0.1479,3405.4,3404.7,14.64479]
[1641489209738,0.1479,3405.4,3404.7,2.00479]
[1641489209943,3.0769,3405.4,3404.7,2.00479]
[1641489210439,7.0769,3405.4,3404.0,23.7776]
[1641489210641,36.54064479,3404.4,3402.4,1.8179641]
[1641489210842,37.18374479,3404.4,3403.4,12.64]
[1641489211039,37.18374479,3404.4,3403.9,12.64]
[1641489211242,0.1479,3404.3,3403.9,12.64]
[1641489211442,0.1479,3404.3,3403.8,2.00479]
[1641489213745,3.0769,3404.3,3403.8,2.00479]
[1641489213946,0.1479,3404.3,3403.8,2.00479]
[1641489214346,0.1479,3404.3,3404.0,1.5]
[1641489214546,0.1479,3404.3,3404.1,0.459982]
[1641489214748,0.1479,3404.3,3403.8,2.389262]
[1641489214946,2.00479,3404.5,3403.9,1.897182]
[1641489215149,0.1479,3404.4,3403.9,1.897182]
[1641489215746,0.1479,3404.4,3404.0,12.64]
[1641489217850,26.862,3405.3,3404.3,1.5]
[1641489218051,2.00479,3405.5,3404.9,12.64]
[1641489218251,2.00479,3405.5,3405.1,12.64]
[1641489218452,2.00479,3405.5,3405.0,0.397182]
[1641489218652,2.00479,3405.5,3405.0,13.037182]
[1641489218952,2.00479,3405.5,3404.9,0.5705]
[1641489218953,0.1479,3405.4,3404.9,0.5705]
[1641489219353,0.1479,3405.4,3404.7,2.00479]
[1641489219953,2.00479,3405.5,3405.1,1.5]
[1641489220155,2.00479,3405.5,3405.1,0.5906]
[1641489220353,2.15269,3405.5,3405.1,0.5906]
[1641489221054,4.15748,3405.5,3405.1,0.5906]
[1641489221252,4.15748,3405.5,3404.5,1.46840506]
[1641489221455,4.15748,3405.5,3404.6,12.64]
[1641489223062,2.00479,3405.0,3404.6,12.64]
[1641489223257,2.00479,3405.5,3404.6,13.024472]
[1641489223658,2.00479,3405.5,3404.6,12.64]
[1641489224660,2.00479,3405.5,3404.3,2.00479]
[1641489224859,2.00479,3405.5,3404.3,14.64479]
[1641489225061,2.00479,3405.0,3404.3,14.64479]
[1641489225263,2.15269,3405.0,3404.4,0.384472]
[1641489225459,2.15269,3405.0,3404.4,13.024472]
[1641489226062,2.15269,3405.0,3404.4,13.421654]
[1641489228064,2.15269,3405.0,3404.3,2.00479]
[1641489228267,2.68819,3405.0,3404.0,12.64]
[1641489229063,2.00479,3404.5,3404.0,12.64]
[1641489229464,0.1479,3404.4,3404.0,12.64]
[1641489230463,0.1479,3404.4,3403.9,12.64]
[1641489235064,2.00479,3404.1,3403.9,12.64]
[1641489235266,2.15269,3404.1,3403.9,13.099982]
[1641489235467,2.00479,3404.6,3403.9,13.099982]
[1641489235865,0.1479,3404.5,3403.9,13.099982]
[1641489236264,0.1479,3404.5,3403.9,13.497164]
[1641489237065,2.00479,3404.2,3403.9,13.099982]
[1641489238167,2.00479,3404.2,3403.9,12.64]
[1641489238366,2.00479,3404.2,3404.1,12.64]
[1641489240266,2.00479,3404.2,3404.1,13.099982]
[1641489240466,2.00479,3404.2,3404.1,12.64]
[1641489241069,2.00479,3404.6,3404.1,13.099982]
[1641489241269,2.00479,3404.6,3404.1,16.57331939]
[1641489241468,2.00479,3404.6,3404.1,16.97050139]
[1641489241669,2.00479,3404.6,3404.3,12.64]
[1641489242069,2.00479,3404.6,3404.5,12.64]
[1641489243070,0.1479,3404.7,3404.5,13.099982]
[1641489243669,2.00479,3405.3,3404.5,13.099982]
[1641489243970,0.1479,3405.2,3404.5,13.099982]
[1641489244170,0.1479,3405.2,3404.5,12.64]
[1641489245573,3.7322,3405.2,3404.5,12.64]
[1641489246976,0.8032,3405.2,3404.5,12.64]
[1641489247177,0.8032,3405.2,3404.2,12.64]
[1641489247373,2.00479,3405.3,3404.7,12.64]
[1641489247576,2.43639,3405.6,3404.9,12.64]
[1641489247974,2.58429,3405.6,3404.9,12.64]
[1641489248174,2.58429,3405.6,3405.1,12.64]
[1641489249875,2.58429,3405.6,3404.7,14.64479]
[1641489253078,5.51329,3405.6,3404.7,14.64479]
[1641489253278,4.05306602,3405.6,3404.7,14.64479]
[1641489253682,2.58429,3405.6,3404.7,14.64479]
[1641489254177,2.929,3405.5,3404.7,14.64479]
[1641489254577,2.43639,3405.6,3404.7,14.64479]
[1641489254778,0.1479,3405.4,3404.7,14.64479]
[1641489256381,0.1479,3405.4,3404.9,12.64]
[1641489256981,0.1479,3405.4,3404.9,13.36458565]
[1641489257183,1.22542745,3405.0,3404.9,13.36458565]
[1641489257381,1.22542745,3405.0,3404.9,15.32456765]
[1641489257583,1.75864117,3405.5,3404.9,16.79258039]
[1641489257781,3.36992549,3406.3,3405.2,12.64]
[1641489258383,3.36992549,3406.3,3405.3,0.397182]
[1641489258584,3.36992549,3406.3,3405.4,12.64]
[1641489258790,2.49472654,3406.0,3405.4,12.64]
[1641489258988,2.49472654,3406.0,3405.6,12.64]
[1641489259385,2.49472654,3406.0,3405.9,14.64479]
[1641489259786,2.49472654,3406.0,3405.9,15.104772]
[1641489260085,0.62230954,3406.0,3405.9,15.501954]
[1641489260286,2.00479,3406.8,3405.9,15.501954]
[1641489260692,2.00479,3406.8,3406.1,12.64]
[1641489261091,2.15269,3406.8,3406.1,12.64]
[1641489261292,2.15269,3406.8,3406.1,13.037182]
[1641489261489,2.15269,3406.8,3406.1,13.828282]
[1641489261692,2.15269,3406.8,3406.3,12.64]
[1641489261891,2.15269,3406.8,3406.4,0.397182]
[1641489263193,2.00479,3406.8,3406.4,0.397182]
[1641489263695,2.00479,3406.8,3406.1,0.73493435]
[1641489263696,2.15269,3406.8,3406.1,0.73493435]
[1641489263899,2.70849,3406.8,3406.1,0.73493435]
[1641489264698,2.48861191,3406.6,3406.0,1.0]
[1641489264898,0.1479,3406.5,3406.0,1.0]
[1641489265300,2.00479,3406.2,3406.0,1.0]
[1641489265497,0.1479,3406.1,3406.0,1.0]
[1641489265697,0.8698,3406.1,3406.0,1.0]
[1641489266299,0.8698,3406.1,3406.0,1.459982]
[1641489266503,0.8698,3406.1,3406.0,1.0]
[1641489267402,0.8698,3406.1,3405.4,2.00479]
[1641489267601,0.8698,3406.1,3405.6,0.15253863]
[1641489267602,4.8698,3406.1,3405.6,0.15253863]
[1641489267801,5.86593757,3406.1,3405.6,0.15253863]
[1641489268001,5.86593757,3406.1,3405.1,2.00479]
[1641489268202,0.99613757,3406.0,3405.1,2.00479]
[1641489268401,1.5,3405.6,3405.1,2.00479]
[1641489268603,1.5,3405.2,3404.6,1.8388597]
[1641489268801,1.5,3405.0,3404.6,1.8388597]
[1641489269007,0.8253,3405.2,3404.3,0.62230062]
[1641489269202,1.5,3405.0,3404.3,0.62230062]
[1641489269504,2.00479,3404.9,3404.3,0.62230062]
[1641489270503,1.24482938,3404.4,3404.1,2.00479]
[1641489270704,0.24482938,3404.4,3404.2,0.459982]
[1641489270901,0.24482938,3404.4,3404.1,2.00479]
[1641489271103,0.88342938,3404.4,3404.1,2.00479]
[1641489271505,0.88342938,3404.4,3404.2,0.459982]
[1641489272103,0.88342938,3404.4,3404.1,2.00479]
[1641489272503,0.88342938,3404.4,3404.2,0.459982]
[1641489272704,0.88342938,3404.4,3404.1,2.00479]
[1641489273103,0.24482938,3404.4,3404.1,2.00479]
[1641489273303,0.24482938,3404.4,3404.2,0.459982]
[1641489273503,0.24482938,3404.4,3404.3,12.64]
[1641489273707,1.49379525,3404.6,3404.3,12.64]
[1641489274309,1.49379525,3404.6,3404.4,0.459982]
[1641489274607,1.49379525,3404.6,3404.1,2.00479]
[1641489274807,2.37039525,3404.6,3404.1,2.00479]
[1641489275609,0.8766,3404.6,3404.4,0.0042313]
[1641489276808,1.5,3404.5,3404.4,0.0042313]
[1641489277410,2.37039525,3404.6,3404.4,0.0042313]
[1641489277610,1.5,3404.5,3403.2,3.75454019]
[1641489277811,1.5,3404.1,3403.2,3.75454019]
[1641489278109,1.5,3404.1,3403.2,1.8388597]
[1641489278110,1.5,3403.9,3403.2,1.8388597]
[1641489278310,2.2432,3403.9,3402.7,1.8388597]
[1641489279011,2.2432,3403.9,3402.8,12.64]
[1641489279417,2.00479,3403.7,3402.9,2.00479]
[1641489279612,3.49894307,3403.7,3402.9,14.64479]
[1641489280411,3.49894307,3403.7,3402.9,12.64]
[1641489280613,2.929,3403.6,3402.5,14.64479]
[1641489280815,1.82464941,3403.4,3403.0,0.30651469]
[1641489281012,2.71484934,3403.4,3403.0,0.30651469]
[1641489281213,1.24514941,3403.4,3403.0,0.30651469]
[1641489281414,2.00479,3403.1,3403.0,0.30651469]
[1641489281613,2.65999,3403.1,3403.0,0.30651469]
[1641489282216,3.90513941,3403.1,3402.6,0.30651469]
[1641489283615,1.24514941,3402.8,3402.3,0.30651469]
[1641489284216,0.5795,3403.0,3402.1,14.64479]
[1641489284419,0.5795,3402.8,3402.1,14.64479]
[1641489285718,2.929,3403.0,3402.1,14.64479]
[1641489286720,4.93379,3403.1,3402.7,0.9205]
[1641489286923,4.93379,3403.1,3402.9,0.9205]
[1641489288122,4.93379,3403.1,3402.1,14.64479]
[1641489288423,4.93379,3403.1,3402.9,0.9205]
[1641489289123,4.93379,3403.1,3402.1,14.64479]
[1641489289526,4.93379,3403.1,3402.9,0.9205]
[1641489291826,2.00479,3403.1,3402.1,14.64479]
[1641489292030,2.00479,3403.1,3402.4,0.9205]
[1641489292525,2.00479,3403.1,3402.1,14.64479]
[1641489292726,2.929,3403.0,3402.1,14.64479]
[1641489292926,5.72649,3403.1,3402.1,14.64479]
[1641489293729,5.72649,3403.1,3402.1,15.56529]
[1641489295131,5.72649,3403.1,3402.1,14.64479]
[1641489295530,5.72649,3403.1,3402.5,0.9205]
[1641489295830,5.72649,3403.1,3402.5,13.5605]
[1641489296031,5.72649,3403.1,3402.5,12.64]
[1641489296231,5.72649,3403.1,3402.1,2.00479]
[1641489297237,5.72649,3403.1,3402.9,0.9205]
[1641489297633,5.72649,3403.1,3402.3,12.64]
[1641489297835,5.72649,3403.1,3402.1,2.00479]
[1641489298335,5.72649,3403.1,3402.4,0.9205]
[1641489298638,5.72649,3403.1,3402.2,0.9205]
[1641489300136,5.72649,3403.1,3402.5,0.9205]
[1641489300335,5.72649,3403.1,3402.3,0.9205]
[1641489300638,5.72649,3403.1,3402.1,14.64479]
[1641489301136,5.72649,3403.1,3403.0,0.9205]
[1641489301737,5.72649,3403.1,3402.1,14.64479]
[1641489301938,5.72649,3403.1,3402.3,0.9205]
[1641489302136,0.5795,3402.8,3402.1,2.00479]
[1641489302339,0.5795,3402.6,3401.9,12.64]
[1641489302537,0.5795,3402.2,3401.4,22.365]
[1641489302740,1.4275,3402.2,3401.0,0.9205]
[1641489302941,0.5795,3402.0,3401.0,0.9205]
[1641489303642,2.00479,3401.7,3401.0,0.9205]
[1641489305046,3.47523335,3401.7,3401.0,0.9205]
[1641489305647,4.0,3401.6,3401.0,0.9205]
[1641489305848,4.5795,3401.6,3401.0,0.9205]
[1641489306447,0.5795,3401.6,3401.0,0.9205]
[1641489306847,2.00479,3401.7,3401.0,0.9205]
[1641489308349,2.00479,3401.7,3401.2,0.9205]
[1641489310155,2.00479,3401.7,3400.9,2.00479]
[1641489310156,2.00479,3401.7,3401.0,0.9205]
[1641489310654,4.0,3401.3,3401.0,0.9205]
[1641489311954,4.6982,3401.3,3400.9,2.00479]
[1641489312155,4.6982,3401.3,3400.5,2.00479]
[1641489312355,4.6982,3401.3,3401.0,0.9205]
[1641489313356,4.6982,3401.3,3400.5,2.92529]
[1641489313556,2.00479,3401.0,3400.5,2.92529]
[1641489313755,2.00479,3401.0,3400.5,2.00479]
[1641489313955,2.00479,3401.0,3400.9,0.9205]
[1641489314155,2.00479,3401.0,3400.5,2.00479]
[1641489314356,2.00479,3401.0,3400.9,0.9205]
[1641489315160,2.00479,3401.0,3400.5,2.00479]
[1641489315756,2.00479,3401.0,3400.9,0.9205]
[1641489317759,2.00479,3401.0,3400.5,2.00479]
[1641489317966,2.00479,3401.0,3400.9,0.9205]
[1641489318965,2.00479,3401.0,3400.5,2.00479]
[1641489319165,4.0,3400.6,3400.0,0.9205]
[1641489319362,4.6771,3400.6,3399.7,0.9205]
[1641489319564,2.00479,3400.1,3399.3,27.82229]
[1641489319764,2.00479,3400.1,3399.4,0.9205]
[1641489320764,2.00479,3400.1,3400.0,0.9205]
[1641489320964,2.00479,3400.1,3399.4,0.9205]
[1641489321265,2.00479,3400.1,3400.0,0.9205]
[1641489321463,2.00479,3400.1,3400.0,1.380482]
[1641489321663,2.00479,3400.1,3400.0,0.9205]
[1641489321864,2.00479,3400.1,3399.6,0.9205]
[1641489322267,2.00479,3400.1,3399.4,0.9205]
[1641489322467,2.80979,3400.1,3399.4,0.9205]
[1641489322767,4.0,3399.7,3398.5,24.7217]
[1641489323173,5.47132606,3399.7,3398.5,25.6422]
[1641489323567,2.00479,3399.1,3398.5,25.6422]
[1641489323768,2.57399,3399.1,3398.5,0.9205]
[1641489323969,2.57399,3399.1,3398.3,2.92529]
[1641489324567,2.57399,3399.1,3398.3,2.00479]
[1641489324970,2.57399,3399.1,3398.5,0.9205]
[1641489325570,2.57399,3399.1,3398.3,14.64479]
[1641489325772,2.57399,3399.1,3399.0,0.9205]
[1641489326268,2.57399,3399.1,3398.3,2.00479]
[1641489326469,5.50299,3399.1,3398.3,2.00479]
[1641489326669,5.50299,3399.1,3398.3,2.92529]
[1641489327271,4.0,3398.7,3397.8,0.9205]
[1641489327470,5.47173532,3398.7,3397.5,0.9205]
[1641489327672,2.00479,3397.9,3397.1,2.00479]
[1641489327872,6.89089,3397.9,3397.1,2.86189]
[1641489328071,8.3629828,3397.9,3397.1,2.86189]
[1641489328275,8.3629828,3397.9,3397.7,0.8571]
[1641489328472,8.3629828,3397.9,3397.1,2.00479]
[1641489328672,6.89089,3397.9,3397.1,2.00479]
[1641489328974,5.47215348,3397.8,3396.3,24.3409]
[1641489329171,4.0,3397.2,3395.7,1.5]
[1641489329373,4.5597,3397.2,3395.7,1.5]
[1641489329573,4.5597,3397.2,3396.0,1.5]
[1641489329772,2.00479,3396.9,3396.1,2.00479]
[1641489330175,2.00479,3396.9,3396.3,1.5]
[1641489330572,2.00479,3396.9,3396.2,0.384472]
[1641489330774,2.53809,3396.9,3396.2,0.384472]
[1641489331173,2.53809,3396.9,3396.2,1.884472]
[1641489331375,0.5333,3396.9,3396.7,1.5]
[1641489331573,2.00479,3397.9,3396.8,0.459982]
[1641489331775,2.00479,3397.9,3397.1,1.5]
[1641489331973,2.00479,3397.9,3397.2,0.397182]
[1641489332175,3.4768698,3397.9,3396.8,2.00479]
[1641489332376,2.85679,3397.9,3396.8,2.00479]
[1641489332576,1.24682446,3397.7,3396.8,2.00479]
[1641489332779,1.24682446,3397.7,3396.9,12.64]
[1641489332978,1.24682446,3397.7,3396.8,2.00479]
[1641489333778,0.99745957,3397.5,3396.8,2.00479]
[1641489333979,0.99745957,3397.5,3396.9,0.781654]
[1641489334580,2.00479,3397.9,3396.9,0.781654]
[1641489334879,4.0,3397.5,3396.1,2.00479]
[1641489335478,4.0,3397.7,3396.1,2.00479]
[1641489335679,2.00479,3397.0,3396.1,2.00479]
[1641489336079,1.47214048,3397.8,3396.9,1.5]
[1641489336279,2.00479,3397.9,3397.4,1.5]
[1641489336482,2.00479,3397.9,3397.5,0.781654]
[1641489337279,2.00479,3397.9,3397.5,0.384472]
[1641489338280,2.00479,3397.9,3397.6,12.64]
[1641489338484,2.00479,3398.4,3397.7,0.857164]
[1641489338882,1.4999,3398.3,3397.2,2.00479]
[1641489339084,2.00479,3398.4,3397.2,2.00479]
[1641489339085,6.78069,3398.4,3397.2,2.00479]
[1641489339683,2.00479,3397.6,3396.8,2.00479]
[1641489339884,2.00479,3397.6,3396.9,13.421654]
[1641489340084,2.78069,3398.4,3396.9,13.421654]
[1641489340386,2.00479,3398.4,3397.3,12.64]
[1641489340585,2.00479,3398.4,3396.9,0.781654]
[1641489340586,2.00479,3398.4,3397.5,12.64]
[1641489341786,2.00479,3398.4,3397.9,2.00479]
[1641489341986,2.00479,3398.4,3397.9,2.389262]
[1641489342186,2.00479,3398.4,3397.9,15.029262]
[1641489342387,2.00479,3398.4,3397.9,2.389262]
[1641489342587,2.00479,3398.4,3398.1,12.64]
[1641489342787,2.00479,3399.0,3398.2,0.459982]
[1641489342986,2.00479,3399.0,3397.9,2.389262]
[1641489343493,0.46744993,3398.3,3398.0,0.31195161]
[1641489343891,1.46467645,3398.3,3398.1,0.459982]
[1641489345894,1.46467645,3398.3,3398.0,0.70913361]
[1641489346295,1.46467645,3398.3,3398.1,0.459982]
[1641489346495,1.46467645,3398.3,3398.0,0.70913361]
[1641489347098,1.46467645,3398.3,3398.1,0.459982]
[1641489347499,1.46467645,3398.3,3398.0,0.70913361]
[1641489348000,1.46467645,3398.3,3398.1,0.459982]
[1641489348198,1.46467645,3398.3,3398.0,0.70913361]
[1641489348499,1.46467645,3398.3,3398.0,0.31195161]
[1641489349801,1.46467645,3398.3,3398.1,0.459982]
[1641489350004,0.99722652,3398.4,3398.0,0.70913361]
[1641489350502,0.99722652,3398.4,3398.1,12.64]
[1641489350703,1.96328971,3398.9,3398.2,0.857164]
[1641489350906,0.46744993,3398.5,3398.4,12.64]
[1641489351106,1.24647933,3398.7,3398.4,12.64]
[1641489351308,1.24647933,3398.7,3398.6,12.64]
[1641489351506,1.24647933,3398.7,3398.6,13.099982]
[1641489351706,1.49583978,3399.0,3398.6,17.109562]
[1641489352113,1.49583978,3399.0,3398.8,12.64]
[1641489352506,1.49583978,3399.0,3398.9,0.857164]
[1641489353307,1.49583978,3399.0,3398.9,0.397182]
[1641489353910,1.49583978,3399.0,3398.9,13.497164]
[1641489354607,1.49583978,3399.0,3398.9,0.857164]
[1641489355008,1.49583978,3399.0,3398.9,0.397182]
[1641489356209,1.49583978,3399.0,3398.9,0.857164]
[1641489356814,1.86979973,3399.8,3399.0,12.64]
[1641489356815,1.49583978,3399.6,3399.0,12.64]
[1641489357011,1.49583978,3399.6,3399.2,12.64]
[1641489357613,1.49583978,3399.6,3399.4,12.64]
[1641489357813,1.49583978,3399.6,3399.3,0.397182]
[1641489357814,1.49583978,3399.8,3399.5,15.8428221]
[1641489358012,1.49583978,3399.8,3399.5,15.3828401]
[1641489358212,1.49583978,3399.8,3399.6,13.037182]
[1641489358613,1.49583978,3399.8,3399.7,0.459982]
[1641489359017,2.00479,3400.2,3399.7,0.459982]
[1641489359415,2.00479,3400.2,3399.9,12.64]
[1641489359615,2.00479,3400.2,3400.0,0.459982]
[1641489359814,1.49583978,3400.3,3400.2,12.64]
[1641489360018,1.86979973,3400.5,3400.2,12.64]
[1641489360214,1.86979973,3400.5,3400.4,14.11012342]
[1641489360413,1.86979973,3400.5,3400.4,14.96728742]
[1641489360614,1.86979973,3400.5,3400.4,16.46728742]
[1641489360815,1.86979973,3400.5,3400.4,14.96728742]
[1641489361217,1.86979973,3400.5,3400.4,13.497164]
[1641489361630,3.11633288,3400.8,3400.4,13.497164]
[1641489361817,1.86979973,3401.2,3400.7,2.00479]
[1641489361818,1.4999,3401.0,3400.7,2.00479]
[1641489362017,4.0,3400.8,3399.8,1.47042389]
[1641489362418,4.0,3400.8,3399.5,1.29026943]
[1641489362819,0.8643,3401.0,3399.3,2.46512025]
[1641489363021,0.8643,3401.0,3399.7,12.64]
[1641489363221,0.98762241,3401.2,3399.7,12.64]
[1641489363821,2.99241241,3401.2,3400.5,2.00479]
[1641489364421,2.99241241,3401.2,3400.5,14.64479]
[1641489364624,2.99241241,3401.2,3400.6,0.384472]
[1641489365021,2.00479,3401.2,3400.7,0.397182]
[1641489366622,0.98762241,3401.6,3400.8,12.64]
[1641489366826,0.98762241,3401.6,3400.9,0.397182]
[1641489367327,0.98762241,3401.6,3401.0,12.64]
[1641489367524,0.98762241,3401.6,3401.1,0.397182]
[1641489367726,2.00479,3401.8,3401.1,0.397182]
[1641489367926,2.00479,3401.8,3401.3,2.00479]
[1641489368125,2.00479,3401.8,3401.4,0.397182]
[1641489368325,2.00479,3401.8,3401.4,1.024182]
[1641489371836,2.00479,3401.8,3401.4,0.397182]
[1641489372430,2.00479,3401.8,3401.3,2.00479]
[1641489372632,2.00479,3401.8,3400.5,2.00479]
[1641489372831,2.00479,3401.8,3400.6,12.64]
[1641489373635,0.99700312,3401.7,3400.6,12.64]
[1641489373836,2.00479,3401.8,3401.1,12.64]
[1641489374037,2.00479,3401.8,3401.2,0.781654]
[1641489374238,2.00479,3401.8,3401.3,12.64]
[1641489374641,2.00479,3401.8,3401.4,0.397182]
[1641489377046,2.00479,3401.8,3401.2,0.384472]
[1641489377439,2.00479,3401.8,3401.2,0.781654]
[1641489378039,2.00479,3401.8,3401.3,12.64]
[1641489378339,2.00479,3401.8,3401.3,13.3344]
[1641489378539,2.00479,3401.8,3401.5,12.64]
[1641489378741,2.00479,3401.8,3401.7,12.64]
[1641489379041,2.00479,3401.8,3401.2,0.384472]
[1641489379342,2.00479,3401.8,3401.0,2.00479]
[1641489379940,0.99702069,3401.7,3401.0,2.00479]
[1641489380540,1.47058607,3401.4,3401.0,2.00479]
[1641489380943,1.4999,3401.2,3401.0,2.00479]
[1641489381139,2.3599,3401.2,3399.8,34.6268]
[1641489381341,1.4999,3400.5,3398.9,0.73118573]
[1641489381543,2.2518,3400.5,3399.0,21.5214]
[1641489381841,2.00479,3400.4,3399.6,2.00479]
[1641489382047,2.00479,3400.4,3399.7,0.781654]
[1641489383243,2.00479,3400.4,3399.8,12.64]
[1641489383441,2.00479,3400.7,3400.0,12.64]
[1641489383843,2.00479,3400.7,3400.3,2.00479]
[1641489386140,2.00479,3400.7,3400.3,14.64479]
[1641489386341,2.00479,3400.7,3400.3,2.00479]
[1641489389044,2.00479,3400.7,3400.2,0.384472]
[1641489390645,2.00479,3400.7,3399.7,12.64]
[1641489391349,2.00479,3400.7,3399.7,14.14]
[1641489391948,2.00479,3400.7,3400.3,12.64]
[1641489392149,2.00479,3400.7,3400.4,13.421654]
[1641489392350,2.00479,3400.7,3400.4,0.781654]
[1641489392849,2.00479,3400.7,3400.5,0.459982]
[1641489393049,2.00479,3400.7,3400.6,0.397182]
[1641489394252,2.00479,3400.7,3400.4,0.384472]
[1641489397152,2.00479,3400.7,3400.5,0.459982]
[1641489397353,2.00479,3400.7,3400.4,0.781654]
[1641489398056,2.00479,3400.7,3400.2,2.00479]
[1641489398456,2.00479,3400.7,3400.3,0.781654]
[1641489403162,21.5526,3401.2,3400.3,13.421654]
[1641489403463,0.98762241,3401.3,3400.3,13.421654]
[1641489404063,0.99710524,3401.2,3400.3,13.421654]
[1641489405368,0.46724766,3401.3,3400.3,13.421654]
[1641489405566,0.46724766,3401.3,3400.3,14.044054]
[1641489405766,0.46724766,3401.3,3400.3,15.544054]
[1641489406169,0.99709458,3401.2,3400.3,14.044054]
[1641489406866,2.00479,3401.4,3400.3,14.044054]
[1641489407067,2.00479,3401.6,3401.1,1.5]
[1641489407268,2.00479,3401.6,3401.2,13.421654]
[1641489407567,2.00479,3401.6,3401.2,0.781654]
[1641489408166,1.86979973,3401.4,3401.2,0.781654]
[1641489408368,1.86979973,3401.4,3401.3,0.459982]
[1641489409371,1.86979973,3401.4,3401.3,13.099982]
[1641489409772,1.86979973,3401.4,3401.3,0.459982]
[1641489409972,1.86979973,3401.4,3401.3,13.099982]
[1641489410173,1.86979973,3401.4,3401.3,14.599982]
[1641489410174,1.57439973,3401.4,3401.3,14.599982]
[1641489410372,4.06746603,3401.7,3401.3,14.599982]
[1641489410576,1.57439973,3401.7,3401.5,12.64]
[1641489410771,1.57439973,3401.7,3401.6,13.099982]
[1641489410974,1.57439973,3401.7,3401.6,12.64]
[1641489411173,1.57439973,3401.7,3401.6,13.037182]
[1641489411573,2.4930663,3402.0,3401.6,13.037182]
[1641489411972,0.99687592,3401.9,3401.6,13.037182]
[1641489412172,0.99687592,3401.9,3401.8,12.64]
[1641489412372,0.99687592,3401.9,3401.8,13.679682]
[1641489412772,0.99687592,3402.1,3401.8,13.679682]
[1641489413072,0.62302798,3402.2,3401.9,13.484454]
[1641489413276,0.62302798,3402.2,3402.1,12.64]
[1641489413472,2.4930663,3402.8,3402.1,12.64]
[1641489413673,0.99682584,3402.2,3402.1,12.64]
[1641489413872,0.99682584,3402.7,3402.1,13.497164]
[1641489414073,0.62302798,3402.9,3402.4,2.00479]
[1641489414273,0.62302798,3402.9,3402.5,0.397182]
[1641489414475,0.62302798,3402.9,3402.6,12.64]
[1641489414674,0.62302798,3402.9,3402.8,12.64]
[1641489414875,0.62302798,3402.9,3402.8,13.421654]
[1641489415673,0.62302798,3402.9,3402.8,1.241636]
[1641489416274,0.62302798,3402.9,3402.8,13.881636]
[1641489416475,2.00479,3403.1,3402.8,13.881636]
[1641489416774,2.00479,3403.1,3402.9,0.397181]
[1641489416974,2.00479,3403.1,3403.0,0.153218]
[1641489419978,1.8621641,3403.3,3403.0,0.153218]
[1641489420180,1.8621641,3403.3,3403.0,2.555189]
[1641489421281,2.929,3403.7,3403.0,2.555189]
[1641489421282,1.8621641,3403.4,3403.0,2.555189]
[1641489422282,1.8621641,3403.5,3403.0,2.555189]
[1641489422685,1.8621641,3403.5,3403.0,15.195189]
[1641489423682,0.46707055,3403.7,3403.0,15.195189]
[1641489425087,0.384472,3403.6,3403.0,15.195189]
[1641489425788,1.24006462,3403.5,3403.0,15.195189]
[1641489426092,0.9920517,3403.2,3403.0,15.195189]
[1641489426389,0.9920517,3403.2,3403.1,15.6089961]
[1641489426888,0.9920517,3403.2,3403.1,14.1089961]
[1641489427087,1.24006462,3403.5,3403.1,14.1089961]
[1641489427388,0.99198438,3403.5,3403.3,12.64]
[1641489427587,0.99198438,3403.5,3403.4,12.793218]
[1641489427787,0.99198438,3403.5,3403.4,13.037181]
[1641489427987,0.99198438,3403.5,3403.4,14.537181]
[1641489428389,1.70713517,3403.8,3403.4,14.690399]
[1641489428592,1.48807755,3404.0,3403.7,12.64]
[1641489428794,1.48807755,3404.0,3403.9,12.64]
[1641489428992,24.00836617,3405.0,3403.9,12.64]
[1641489428993,1.48807755,3404.1,3403.9,14.10861856]
[1641489429191,1.48807755,3404.1,3404.0,14.14]
[1641489429393,1.48807755,3404.1,3404.0,13.190399]
[1641489429596,1.40937755,3404.1,3404.0,14.690399]
[1641489430195,1.40937755,3404.1,3404.0,18.699979]
[1641489430595,1.40937755,3404.1,3404.0,17.199979]
[1641489430795,3.11609428,3404.6,3404.0,17.199979]
[1641489430999,1.48758122,3404.9,3404.0,17.199979]
[1641489431997,2.00479,3405.2,3404.0,17.199979]
[1641489432298,2.00479,3405.2,3404.6,12.64]
[1641489432497,2.389262,3405.2,3404.6,13.295]
[1641489432797,2.389262,3405.2,3404.8,12.64]
[1641489433498,2.389262,3405.2,3404.7,0.781653]
[1641489434401,2.389262,3405.2,3404.7,13.421653]
[1641489434602,0.384472,3405.2,3404.7,11.42973996]
[1641489434802,0.384472,3405.2,3404.6,0.655]
[1641489435101,0.397182,3405.1,3404.6,0.655]